bitfinex-derivatives/quotes_BTCF0:USTF0_20250514
["timestamp","ask_amount","ask_price","bid_price","bid_amount"]
[1747261896502,1.51166132,103550.0,103540.0,0.26172071]
[1747261901316,1.10330132,103550.0,103540.0,0.26172071]
[1747261914728,0.74250132,103550.0,103540.0,0.26172071]
[1747261915035,0.68170132,103550.0,103540.0,0.45485371]
[1747261915223,0.68170132,103550.0,103540.0,0.26172071]
[1747261915831,0.74460132,103550.0,103540.0,0.26172071]
[1747261917224,0.74460132,103550.0,103540.0,0.23152071]
[1747261918033,0.74460132,103550.0,103540.0,0.2259]
[1747261919033,0.74460132,103550.0,103540.0,0.23152071]
[1747261919732,0.74460132,103550.0,103540.0,0.26262071]
[1747261921036,0.74460132,103550.0,103540.0,0.257]
[1747261922043,0.74460132,103550.0,103540.0,0.26262071]
[1747261923046,0.74460132,103550.0,103540.0,0.257]
[1747261924246,0.74460132,103550.0,103540.0,0.26262071]
[1747261927149,0.74460132,103550.0,103540.0,0.257]
[1747261928143,0.74460132,103550.0,103540.0,0.26262071]
[1747261928647,0.74460132,103550.0,103540.0,0.45575371]
[1747261928843,0.74460132,103550.0,103540.0,0.26262071]
[1747261939760,0.74460132,103550.0,103540.0,0.20032071]
[1747261942760,1.10540132,103550.0,103540.0,0.0327]
[1747261944260,1.10540132,103550.0,103540.0,0.1947]
[1747261945164,1.10540132,103550.0,103540.0,0.0327]
[1747261946157,1.10540132,103550.0,103540.0,0.1947]
[1747261947650,1.10540132,103550.0,103540.0,0.20032071]
[1747261950560,1.10540132,103550.0,103540.0,0.1947]
[1747261951261,0.74460132,103550.0,103540.0,0.1947]
[1747261951462,1.10540132,103550.0,103540.0,0.1947]
[1747261951657,1.10540132,103550.0,103540.0,0.20032071]
[1747261952662,1.10540132,103550.0,103540.0,0.1947]
[1747261954264,1.10540132,103550.0,103540.0,0.0327]
[1747261957866,1.10540132,103550.0,103540.0,0.03832071]
[1747261959168,1.10540132,103550.0,103540.0,0.20032071]
[1747261960166,1.10540132,103550.0,103540.0,0.03832071]
[1747261961167,1.10540132,103550.0,103540.0,0.20032071]
[1747261962468,0.74460132,103550.0,103540.0,0.20032071]
[1747261962768,1.10540132,103550.0,103540.0,0.20032071]
[1747261963857,1.10540132,103550.0,103540.0,0.23042071]
[1747261964261,1.10540132,103550.0,103540.0,0.26132071]
[1747261970470,0.74460132,103550.0,103540.0,0.26132071]
[1747261970682,1.10540132,103550.0,103540.0,0.26132071]
[1747261982686,0.6576144,103550.0,103540.0,0.45445371]
[1747261982886,0.74460132,103550.0,103540.0,0.26132071]
[1747261983088,0.71420132,103550.0,103540.0,0.26132071]
[1747261983290,0.1931144,103550.0,103540.0,0.99881699]
[1747261983780,0.1931144,103550.0,103540.0,0.91183007]
[1747261989705,0.28010132,103550.0,103540.0,0.91183007]
[1747261990602,0.67518204,103560.0,103540.0,0.91183007]
[1747261990603,0.32199096,103560.0,103540.0,0.86353727]
[1747261990809,0.61650795,103560.0,103550.0,0.73640132]
[1747261991294,0.61650795,103560.0,103550.0,0.6494144]
[1747261991494,0.61650795,103560.0,103550.0,0.74598144]
[1747261991904,0.61850795,103560.0,103550.0,0.74598144]
[1747261992207,0.57023085,103560.0,103550.0,0.90798144]
[1747261992597,0.65721777,103560.0,103550.0,0.90798144]
[1747261992804,0.57023085,103560.0,103550.0,0.90798144]
[1747261994206,0.65721777,103560.0,103550.0,0.90798144]
[1747261994404,0.68901777,103560.0,103550.0,0.90798144]
[1747262001323,0.68901777,103560.0,103550.0,0.91360215]
[1747262003227,0.75171777,103560.0,103550.0,0.91360215]
[1747262008128,0.66473085,103560.0,103550.0,0.91360215]
[1747262008333,0.72041777,103560.0,103550.0,0.91360215]
[1747262008528,0.5071065,103560.0,103550.0,1.00058907]
[1747262012925,0.5070957,103560.0,103550.0,1.00058907]
[1747262013122,0.5070957,103560.0,103550.0,1.20366907]
[1747262013831,0.5060957,103560.0,103550.0,1.20366907]
[1747262014530,0.313,103560.0,103550.0,1.20366907]
[1747262014727,0.5060957,103560.0,103550.0,1.30023707]
[1747262014920,0.313,103560.0,103550.0,1.30023707]
[1747262015125,0.313,103560.0,103550.0,1.50335707]
[1747262015327,0.5060957,103560.0,103550.0,1.50335707]
[1747262015534,0.5050957,103560.0,103550.0,1.50335707]
[1747262015832,0.5050957,103560.0,103550.0,3.00335707]
[1747262016427,0.312,103560.0,103550.0,3.00335707]
[1747262017824,0.5050957,103560.0,103550.0,3.00335707]
[1747262018536,0.5050957,103560.0,103550.0,2.90678907]
[1747262022424,0.5353957,103560.0,103550.0,2.90678907]
[1747262022629,0.5658957,103560.0,103550.0,2.90678907]
[1747262022837,0.5658957,103560.0,103550.0,2.70366907]
[1747262023237,0.5658957,103560.0,103550.0,2.50058907]
[1747262023637,0.5658957,103560.0,103550.0,2.61668215]
[1747262024539,0.5658957,103560.0,103550.0,3.06446907]
[1747262025238,0.5981957,103560.0,103550.0,3.06446907]
[1747262025738,0.5981957,103560.0,103550.0,2.97748215]
[1747262026329,0.68518262,103560.0,103550.0,2.97748215]
[1747262026527,0.68518262,103560.0,103550.0,1.47748215]
[1747262026727,0.68518262,103560.0,103550.0,1.24260215]
[1747262026923,0.68518262,103560.0,103550.0,0.88180215]
[1747262028241,0.68618262,103560.0,103550.0,0.88180215]
[1747262028434,0.68718262,103560.0,103550.0,0.88180215]
[1747262029641,0.68718262,103560.0,103550.0,0.52100215]
[1747262032631,0.37718262,103560.0,103550.0,0.52100215]
[1747262033941,0.37718262,103560.0,103550.0,0.88180215]
[1747262037844,0.55416954,103560.0,103550.0,0.85100215]
[1747262038043,0.97720954,103560.0,103550.0,0.81810215]
[1747262039845,0.97720954,103560.0,103550.0,0.84940215]
[1747262042736,0.89022262,103560.0,103550.0,0.84940215]
[1747262042954,0.97720954,103560.0,103550.0,0.84940215]
[1747262043140,0.89022262,103560.0,103550.0,0.84940215]
[1747262043841,0.89022262,103560.0,103550.0,0.65628775]
[1747262044038,1.33800954,103560.0,103550.0,0.16762071]
[1747262044241,1.33800954,103560.0,103550.0,0.00562071]
[1747262044548,1.52156446,103560.0,103550.0,0.00562071]
[1747262044851,1.43457754,103560.0,103550.0,0.00562071]
[1747262045148,0.193133,103540.0,103530.0,0.97777861]
[1747262045345,0.48315992,103540.0,103530.0,0.97777861]
[1747262045545,0.57895992,103540.0,103530.0,1.07434565]
[1747262046143,0.57895992,103540.0,103530.0,1.07634565]
[1747262046449,0.57895992,103540.0,103530.0,1.07834565]
[1747262049252,0.57895992,103540.0,103530.0,0.7673703]
[1747262050754,0.288933,103540.0,103530.0,0.7673703]
[1747262051051,0.193133,103540.0,103530.0,0.88615722]
[1747262051247,0.193133,103540.0,103530.0,1.04815722]
[1747262054057,0.225633,103540.0,103530.0,1.04815722]
[1747262054249,0.258633,103540.0,103530.0,1.04815722]
[1747262057958,0.258633,103540.0,103530.0,1.04415722]
[1747262059062,0.258633,103540.0,103530.0,0.9571703]
[1747262059265,0.258633,103540.0,103530.0,1.04415722]
[1747262060164,0.258633,103540.0,103530.0,1.04977793]
[1747262067469,0.258633,103540.0,103530.0,0.68897793]
[1747262067659,0.258633,103540.0,103530.0,1.04977793]
[1747262070472,0.290933,103540.0,103530.0,1.04977793]
[1747262070768,0.290933,103540.0,103530.0,0.96279101]
[1747262070973,0.290933,103540.0,103530.0,1.04977793]
[1747262071566,0.340933,103540.0,103530.0,1.04977793]
[1747262072263,0.340933,103540.0,103530.0,0.96279101]
[1747262073066,0.290933,103540.0,103530.0,0.96279101]
[1747262074273,0.290933,103540.0,103530.0,0.80079101]
[1747262074670,0.44791992,103540.0,103530.0,0.80079101]
[1747262074870,0.44791992,103540.0,103530.0,0.68880401]
[1747262075072,0.37791992,103540.0,103530.0,0.68880401]
[1747262075571,0.37791992,103540.0,103530.0,0.72200401]
[1747262078775,0.290933,103540.0,103530.0,0.72200401]
[1747262078970,0.37791992,103540.0,103530.0,0.72200401]
[1747262079473,0.38739987,103540.0,103530.0,0.72200401]
[1747262080271,0.30041295,103540.0,103530.0,0.72200401]
[1747262082377,0.30041295,103540.0,103530.0,0.88400401]
[1747262082766,0.38839987,103540.0,103530.0,0.88400401]
[1747262083278,0.38839987,103540.0,103530.0,0.72200401]
[1747262083582,0.37891992,103540.0,103530.0,0.72200401]
[1747262083877,0.291933,103540.0,103530.0,0.80899093]
[1747262084072,0.291933,103540.0,103530.0,0.84009093]
[1747262084277,0.0335,103540.0,103530.0,1.00209093]
[1747262084467,0.195133,103540.0,103530.0,1.36289093]
[1747262086576,0.226833,103540.0,103530.0,1.36289093]
[1747262093982,0.258733,103540.0,103530.0,1.36289093]
[1747262095786,0.258733,103540.0,103530.0,1.00209093]
[1747262099479,0.290133,103540.0,103530.0,1.00209093]
[1747262100885,0.44711992,103540.0,103530.0,0.69085361]
[1747262101187,0.44711992,103540.0,103530.0,0.72200531]
[1747262105378,0.360133,103540.0,103530.0,0.72200531]
[1747262105691,0.44711992,103540.0,103530.0,0.72200531]
[1747262106485,0.96718684,103540.0,103530.0,0.56053827]
[1747262106787,0.88019992,103540.0,103530.0,0.56053827]
[1747262106990,0.67019992,103540.0,103530.0,0.59133827]
[1747262108782,0.67019992,103540.0,103530.0,0.39818657]
[1747262108978,1.01718684,103540.0,103530.0,0.36738657]
[1747262109184,1.09219992,103540.0,103530.0,0.36738657]
[1747262109394,1.09219992,103540.0,103530.0,0.59143827]
[1747262109684,0.68911992,103540.0,103530.0,0.59143827]
[1747262109878,0.94731992,103540.0,103530.0,0.71972396]
[1747262110080,0.94731992,103540.0,103530.0,0.75102396]
[1747262110276,0.495253,103540.0,103530.0,0.75102396]
[1747262110675,0.495213,103540.0,103530.0,0.75102396]
[1747262111077,0.495213,103540.0,103530.0,0.91302396]
[1747262111288,0.58219992,103540.0,103530.0,0.91302396]
[1747262111593,0.58219992,103540.0,103530.0,0.88172396]
[1747262111793,0.58219992,103540.0,103530.0,0.85002396]
[1747262111993,0.58219992,103540.0,103530.0,0.65687226]
[1747262112194,0.60219992,103540.0,103530.0,0.49487226]
[1747262112397,0.80219992,103540.0,103530.0,0.49487226]
[1747262112995,0.80219992,103540.0,103530.0,0.68802396]
[1747262113495,0.80219992,103540.0,103530.0,0.49487226]
[1747262114894,0.59219992,103540.0,103530.0,0.49487226]
[1747262115095,0.59219992,103540.0,103530.0,0.65687226]
[1747262115690,0.59219992,103540.0,103530.0,0.56028657]
[1747262115995,0.59219992,103540.0,103530.0,0.75343827]
[1747262116200,0.59219992,103540.0,103530.0,0.59143827]
[1747262117298,0.58219992,103540.0,103530.0,0.59143827]
[1747262117598,0.78519992,103540.0,103530.0,0.62253827]
[1747262118693,0.698213,103540.0,103530.0,0.62253827]
[1747262118994,0.78519992,103540.0,103530.0,0.62253827]
[1747262119195,0.37711992,103540.0,103530.0,0.62253827]
[1747262119398,0.58247992,103540.0,103530.0,0.62253827]
[1747262122693,0.58247992,103540.0,103530.0,0.65463827]
[1747262124196,0.58247992,103540.0,103530.0,0.81663827]
[1747262124600,0.58247992,103540.0,103530.0,0.62348657]
[1747262125499,0.58247992,103540.0,103530.0,0.81663827]
[1747262125701,0.58247992,103540.0,103530.0,0.62348657]
[1747262126797,0.495493,103540.0,103530.0,0.62348657]
[1747262127702,0.58247992,103540.0,103530.0,0.62348657]
[1747262128302,0.59247992,103540.0,103530.0,0.62348657]
[1747262129302,0.505493,103540.0,103530.0,0.81663827]
[1747262129492,0.505493,103540.0,103530.0,0.62348657]
[1747262129803,0.59247992,103540.0,103530.0,0.62348657]
[1747262134699,0.59247992,103540.0,103530.0,0.26268657]
[1747262134900,0.59247992,103540.0,103530.0,0.62348657]
[1747262135604,0.59247992,103540.0,103530.0,0.81663827]
[1747262135807,0.58247992,103540.0,103530.0,0.62348657]
[1747262138107,0.61247992,103540.0,103530.0,0.62348657]
[1747262141406,0.61247992,103540.0,103530.0,0.26268657]
[1747262141600,0.61247992,103540.0,103530.0,0.62348657]
[1747262142107,0.61247992,103540.0,103530.0,0.26268657]
[1747262142312,0.61247992,103540.0,103530.0,0.62348657]
[1747262144217,0.61247992,103540.0,103530.0,0.26268657]
[1747262144513,0.61247992,103540.0,103530.0,0.62348657]
[1747262147314,0.61247992,103540.0,103530.0,0.26268657]
[1747262147616,0.61247992,103540.0,103530.0,0.62348657]
[1747262149918,0.525493,103540.0,103530.0,0.62348657]
[1747262150217,0.61247992,103540.0,103530.0,0.62348657]
[1747262153317,0.61247992,103540.0,103530.0,0.26268657]
[1747262153512,0.61247992,103540.0,103530.0,0.62348657]
[1747262153713,0.61247992,103540.0,103530.0,0.81663827]
[1747262153913,0.61247992,103540.0,103530.0,0.62348657]
[1747262159523,0.61247992,103540.0,103530.0,0.26268657]
[1747262159823,0.61247992,103540.0,103530.0,0.62348657]
[1747262162523,0.61247992,103540.0,103530.0,0.26268657]
[1747262162719,0.61247992,103540.0,103530.0,0.62348657]
[1747262163923,0.92247992,103540.0,103530.0,0.59138657]
[1747262165723,0.92247992,103540.0,103530.0,0.62278657]
[1747262166531,0.92247992,103540.0,103530.0,0.59138657]
[1747262167233,0.64247992,103540.0,103530.0,0.59138657]
[1747262167426,0.64247992,103540.0,103530.0,0.62268657]
[1747262172430,0.64247992,103540.0,103530.0,0.26188657]
[1747262172730,0.64247992,103540.0,103530.0,0.62268657]
[1747262172922,0.64247992,103540.0,103530.0,0.59138657]
[1747262173530,0.64247992,103540.0,103530.0,0.23058657]
[1747262173729,0.64247992,103540.0,103530.0,0.59138657]
[1747262173929,0.64247992,103540.0,103530.0,0.23058657]
[1747262174133,0.64247992,103540.0,103530.0,0.59138657]
[1747262174819,0.64247992,103540.0,103530.0,0.23058657]
[1747262175024,0.64247992,103540.0,103530.0,0.59138657]
[1747262175922,0.72946684,103540.0,103530.0,0.59138657]
[1747262176117,0.88247992,103540.0,103530.0,0.42938657]
[1747262176321,0.88247992,103540.0,103530.0,0.46058657]
[1747262177230,0.88247992,103540.0,103530.0,0.62258657]
[1747262177627,0.64247992,103540.0,103530.0,0.62258657]
[1747262187240,0.95946684,103540.0,103530.0,0.62258657]
[1747262187941,0.87247992,103540.0,103530.0,0.62258657]
[1747262188334,0.95946684,103540.0,103530.0,0.62258657]
[1747262189140,0.785493,103540.0,103530.0,0.62258657]
[1747262189344,0.60247992,103540.0,103530.0,0.62258657]
[1747262189645,0.81247992,103540.0,103530.0,0.62258657]
[1747262189841,0.725493,103540.0,103530.0,0.62258657]
[1747262190146,0.81247992,103540.0,103530.0,0.62258657]
[1747262191548,0.725493,103540.0,103530.0,0.62258657]
[1747262191749,0.81247992,103540.0,103530.0,0.62258657]
[1747262192747,0.81247992,103540.0,103530.0,0.26178657]
[1747262192945,0.81247992,103540.0,103530.0,0.62258657]
[1747262193148,0.58247992,103540.0,103530.0,0.62258657]
[1747262193348,0.60247992,103540.0,103530.0,0.62258657]
[1747262194146,0.58247992,103540.0,103530.0,0.62258657]
[1747262194350,0.93247992,103540.0,103530.0,0.62258657]
[1747262194542,0.63247992,103540.0,103530.0,0.62258657]
[1747262195142,0.94247992,103540.0,103530.0,0.62258657]
[1747262195651,1.14831992,103540.0,103530.0,0.62258657]
[1747262196246,0.78831992,103540.0,103530.0,0.62258657]
[1747262196449,0.85831992,103540.0,103530.0,0.62258657]
[1747262197145,0.85831992,103540.0,103530.0,0.26178657]
[1747262197353,0.961333,103540.0,103530.0,0.81573827]
[1747262197540,0.545133,103540.0,103530.0,0.81573827]
[1747262197740,0.965853,103540.0,103530.0,0.81573827]
[1747262197958,0.965853,103540.0,103530.0,0.91232396]
[1747262198642,0.615853,103540.0,103530.0,0.91232396]
[1747262199565,0.70283992,103540.0,103530.0,0.91232396]
[1747262201066,0.73483992,103540.0,103530.0,0.71917226]
[1747262201265,0.76593992,103540.0,103530.0,0.71917226]
[1747262203659,0.85292684,103540.0,103530.0,0.71917226]
[1747262204370,0.88572684,103540.0,103530.0,0.71917226]
[1747262205764,0.94572684,103540.0,103530.0,0.62258657]
[1747262205968,1.13572684,103540.0,103530.0,0.62258657]
[1747262207465,1.13572684,103540.0,103530.0,0.26178657]
[1747262207662,1.13572684,103540.0,103530.0,0.62258657]
[1747262207970,1.13572684,103540.0,103530.0,0.59138657]
[1747262208169,1.13572684,103540.0,103530.0,0.42938657]
[1747262209172,1.13572684,103540.0,103530.0,0.59138657]
[1747262210471,1.13572684,103540.0,103530.0,0.62358657]
[1747262210770,0.90572684,103540.0,103530.0,0.62358657]
[1747262211078,0.88572684,103540.0,103530.0,0.62358657]
[1747262211378,1.21572684,103540.0,103530.0,0.62358657]
[1747262212978,1.21572684,103540.0,103530.0,0.26278657]
[1747262213277,1.21572684,103540.0,103530.0,0.62358657]
[1747262217277,1.21572684,103540.0,103530.0,0.59138657]
[1747262219186,1.21572684,103540.0,103530.0,0.52938657]
[1747262219383,1.041753,103540.0,103530.0,0.52938657]
[1747262219571,1.12873992,103540.0,103530.0,0.56218657]
[1747262219770,1.21484684,103540.0,103530.0,0.56218657]
[1747262220278,1.21484684,103540.0,103530.0,0.52938657]
[1747262220782,1.21484684,103540.0,103530.0,0.56218657]
[1747262226181,1.21484684,103540.0,103530.0,0.20138657]
[1747262226383,1.21484684,103540.0,103530.0,0.56218657]
[1747262228093,1.040873,103540.0,103530.0,0.56218657]
[1747262228295,1.21484684,103540.0,103530.0,0.56218657]
[1747262228696,1.040873,103540.0,103530.0,0.56218657]
[1747262228990,1.12785992,103540.0,103530.0,0.62418657]
[1747262229186,1.12845992,103540.0,103530.0,0.62418657]
[1747262229389,1.21544684,103540.0,103530.0,0.62418657]
[1747262232791,1.12845992,103540.0,103530.0,0.62418657]
[1747262233795,1.21544684,103540.0,103530.0,0.62418657]
[1747262237700,1.21544684,103540.0,103530.0,0.59238657]
[1747262238496,1.21544684,103540.0,103530.0,0.23158657]
[1747262238703,1.21544684,103540.0,103530.0,0.59238657]
[1747262240007,1.21544684,103540.0,103530.0,0.23158657]
[1747262240193,1.21544684,103540.0,103530.0,0.59238657]
[1747262240394,1.21544684,103540.0,103530.0,0.23158657]
[1747262240594,1.21544684,103540.0,103530.0,0.59238657]
[1747262242898,1.041473,103540.0,103530.0,0.59238657]
[1747262243104,1.06375992,103540.0,103530.0,0.59238657]
[1747262243305,0.64411992,103540.0,103530.0,0.59238657]
[1747262243606,1.09567992,103540.0,103530.0,0.62278657]
[1747262243806,1.12727992,103540.0,103530.0,0.62278657]
[1747262247602,1.21426684,103540.0,103530.0,0.62278657]
[1747262248220,1.21426684,103540.0,103530.0,0.59238657]
[1747262249205,1.12695992,103540.0,103530.0,0.59238657]
[1747262260912,1.12695992,103540.0,103530.0,0.23158657]
[1747262261219,1.12695992,103540.0,103530.0,0.59238657]
[1747262265617,0.70751992,103540.0,103530.0,0.59238657]
[1747262265821,0.70751992,103540.0,103530.0,0.62378657]
[1747262265822,1.12419992,103540.0,103530.0,0.62378657]
[1747262266025,1.12415992,103540.0,103530.0,0.62378657]
[1747262269925,1.037173,103540.0,103530.0,0.62378657]
[1747262270119,1.12415992,103540.0,103530.0,0.62378657]
[1747262277230,1.12415992,103540.0,103530.0,0.26298657]
[1747262277434,1.12415992,103540.0,103530.0,0.62378657]
[1747262283536,1.037173,103540.0,103530.0,0.62378657]
[1747262283736,1.12319992,103540.0,103530.0,0.62378657]
[1747262285237,1.21018684,103540.0,103530.0,0.62378657]
[1747262289037,1.21018684,103540.0,103530.0,0.26298657]
[1747262289337,1.12319992,103540.0,103530.0,0.62378657]
[1747262292837,1.12319992,103540.0,103530.0,0.59238657]
[1747262294741,1.036213,103540.0,103530.0,0.59238657]
[1747262294939,1.12319992,103540.0,103530.0,0.59238657]
[1747262297741,1.21018684,103540.0,103530.0,0.56218657]
[1747262298137,0.1931324,103530.0,103520.0,0.0323]
[1747262298340,1.04641932,103530.0,103520.0,0.0323]
[1747262299241,1.04641932,103530.0,103520.0,0.1943]
[1747262299846,0.68561932,103530.0,103520.0,0.1943]
[1747262300035,0.5986324,103530.0,103520.0,0.1943]
[1747262300241,1.3733524,103530.0,103520.0,0.2255]
[1747262300443,1.46333932,103530.0,103520.0,0.2586]
[1747262300626,1.46633932,103530.0,103520.0,0.2586]
[1747262301237,1.46633932,103530.0,103520.0,0.2255]
[1747262302546,1.05241932,103530.0,103520.0,0.2255]
[1747262302745,1.10537932,103530.0,103520.0,0.2255]
[1747262303750,1.46617932,103530.0,103520.0,0.2255]
[1747262304633,1.55316624,103530.0,103520.0,0.2255]
[1747262304842,1.55316624,103530.0,103520.0,0.1943]
[1747262306141,1.3791924,103530.0,103520.0,0.1943]
[1747262306341,1.55316624,103530.0,103520.0,0.1943]
[1747262307848,1.0184724,103530.0,103520.0,0.1943]
[1747262308148,1.10553932,103530.0,103520.0,0.2568]
[1747262308331,1.10557932,103530.0,103520.0,0.2568]
[1747262308840,1.46637932,103530.0,103520.0,0.2568]
[1747262312854,1.10557932,103530.0,103520.0,0.2568]
[1747262313353,0.69161932,103530.0,103520.0,0.2568]
[1747262313544,1.04205932,103530.0,103520.0,0.2568]
[1747262313743,0.62841932,103530.0,103520.0,0.449951]
[1747262313946,1.40285932,103530.0,103520.0,0.449951]
[1747262314952,1.40277932,103530.0,103520.0,0.54654602]
[1747262315151,1.40277932,103530.0,103520.0,0.55216673]
[1747262315852,1.40277932,103530.0,103520.0,0.35901573]
[1747262316744,1.40277932,103530.0,103520.0,0.55216673]
[1747262316945,1.40277932,103530.0,103520.0,0.35901573]
[1747262317955,1.04197932,103530.0,103520.0,0.35901573]
[1747262318156,1.40277932,103530.0,103520.0,0.35901573]
[1747262318354,1.40277932,103530.0,103520.0,0.55216673]
[1747262320457,1.43287932,103530.0,103520.0,0.55216673]
[1747262322756,1.43287932,103530.0,103520.0,0.35901573]
[1747262323064,1.07207932,103530.0,103520.0,0.35901573]
[1747262323274,1.10417932,103530.0,103520.0,0.35901573]
[1747262324059,1.46497932,103530.0,103520.0,0.35901573]
[1747262328151,1.10417932,103530.0,103520.0,0.35901573]
[1747262329174,1.46497932,103530.0,103520.0,0.35901573]
[1747262329860,1.3779924,103530.0,103520.0,0.35901573]
[1747262330058,1.46497932,103530.0,103520.0,0.35901573]
[1747262330775,1.10417932,103530.0,103520.0,0.35901573]
[1747262330966,1.46497932,103530.0,103520.0,0.35901573]
[1747262332766,1.46497932,103530.0,103520.0,0.55216673]
[1747262333364,1.10417932,103530.0,103520.0,0.55216673]
[1747262333965,1.0171924,103530.0,103520.0,0.55216673]
[1747262334164,1.10417932,103530.0,103520.0,0.55216673]
[1747262334964,1.46497932,103530.0,103520.0,0.55216673]
[1747262336065,1.46497932,103530.0,103520.0,0.35901573]
[1747262338285,1.10417932,103530.0,103520.0,0.35901573]
[1747262338468,1.46497932,103530.0,103520.0,0.35901573]
[1747262339870,1.10417932,103530.0,103520.0,0.35901573]
[1747262340171,1.46497932,103530.0,103520.0,0.35901573]
[1747262341869,1.46497932,103530.0,103520.0,0.32881573]
[1747262343075,1.46497932,103530.0,103520.0,0.19992071]
[1747262343571,1.19116624,103530.0,103520.0,0.19992071]
[1747262343874,1.10417932,103530.0,103520.0,0.19992071]
[1747262344680,1.55196624,103530.0,103520.0,0.16762071]
[1747262348778,1.19116624,103530.0,103520.0,0.16762071]
[1747262349381,1.55196624,103530.0,103520.0,0.16762071]
[1747262351281,1.46497932,103530.0,103520.0,0.16762071]
[1747262351781,1.46497932,103530.0,103520.0,0.19852071]
[1747262352679,1.46345932,103530.0,103520.0,0.19852071]
[1747262352987,1.46309932,103530.0,103520.0,0.19852071]
[1747262353878,1.10229932,103530.0,103520.0,0.19852071]
[1747262354084,1.10245932,103530.0,103520.0,0.55932071]
[1747262354281,1.10245932,103530.0,103520.0,0.19852071]
[1747262354581,0.8094724,103530.0,103520.0,0.19852071]
[1747262354885,0.69061932,103530.0,103520.0,0.19852071]
[1747262355184,1.10241932,103530.0,103520.0,0.19852071]
[1747262355484,1.46321932,103530.0,103520.0,0.19852071]
[1747262359181,1.10241932,103530.0,103520.0,0.19852071]
[1747262359384,0.4105,103530.0,103520.0,0.39167171]
[1747262359586,0.0361,103530.0,103520.0,0.99795365]
[1747262359888,0.5291324,103530.0,103520.0,0.91096673]
[1747262360090,0.1991324,103530.0,103520.0,0.91096673]
[1747262360293,0.1991324,103530.0,103520.0,0.55016673]
[1747262360682,0.4018924,103530.0,103520.0,0.55016673]
[1747262360882,0.49187932,103530.0,103520.0,0.55016673]
[1747262361183,0.48887932,103530.0,103520.0,0.55016673]
[1747262361392,0.1991324,103530.0,103520.0,0.55016673]
[1747262362586,0.2291324,103530.0,103520.0,0.55016673]
[1747262362893,0.2623324,103530.0,103520.0,0.55016673]
[1747262365195,0.34931932,103530.0,103520.0,0.35701573]
[1747262365397,0.38011932,103530.0,103520.0,0.35701573]
[1747262365991,0.38011932,103530.0,103520.0,0.55016673]
[1747262371397,0.69011932,103530.0,103520.0,0.35701573]
[1747262371600,1.05091932,103530.0,103520.0,0.35701573]
[1747262374401,0.69011932,103530.0,103520.0,0.35701573]
[1747262375691,0.3731324,103530.0,103520.0,0.55016673]
[1747262376005,0.66011932,103530.0,103520.0,0.35701573]
[1747262376703,1.02091932,103530.0,103520.0,0.35701573]
[1747262377804,1.05371932,103530.0,103520.0,0.35701573]
[1747262379704,0.69291932,103530.0,103520.0,0.35701573]
[1747262380709,1.05371932,103530.0,103520.0,0.35701573]
[1747262383715,1.05371932,103530.0,103520.0,0.19852071]
[1747262384899,0.77990624,103530.0,103520.0,0.16762071]
[1747262385209,0.69291932,103530.0,103520.0,0.16762071]
[1747262385416,0.69291932,103530.0,103520.0,0.19892071]
[1747262385906,0.89783932,103530.0,103520.0,0.23092071]
[1747262386215,1.25863932,103530.0,103520.0,0.23092071]
[1747262387715,1.25863932,103530.0,103520.0,0.19892071]
[1747262389910,0.89783932,103530.0,103520.0,0.19892071]
[1747262390511,0.89783932,103530.0,103520.0,0.39207171]
[1747262390829,0.2631324,103530.0,103520.0,1.00025365]
[1747262391002,0.2631324,103530.0,103520.0,0.63945365]
[1747262391207,0.2631324,103530.0,103520.0,0.55246673]
[1747262391506,0.2950324,103530.0,103520.0,0.55246673]
[1747262392021,0.2930324,103530.0,103520.0,0.55246673]
[1747262392915,0.2900324,103530.0,103520.0,0.55246673]
[1747262393220,0.2910324,103530.0,103520.0,0.55246673]
[1747262395119,0.2910324,103530.0,103520.0,0.91326673]
[1747262399027,0.2283324,103530.0,103520.0,1.00025365]
[1747262400326,0.2591324,103530.0,103520.0,0.91326673]
[1747262402731,0.2920324,103530.0,103520.0,0.91326673]
[1747262405328,0.2920324,103530.0,103520.0,1.00025365]
[1747262405529,0.2283324,103530.0,103520.0,1.08724057]
[1747262405721,0.2483324,103530.0,103520.0,0.91326673]
[1747262405922,0.2792324,103530.0,103520.0,0.91326673]
[1747262406422,0.39941932,103530.0,103520.0,0.91326673]
[1747262407232,0.3124324,103530.0,103520.0,0.91326673]
[1747262408029,0.6624324,103530.0,103520.0,0.35931573]
[1747262408424,0.6624324,103530.0,103520.0,0.32671573]
[1747262408933,0.6624324,103530.0,103520.0,0.51986673]
[1747262409233,0.6624324,103530.0,103520.0,0.32671573]
[1747262409436,0.6624324,103530.0,103520.0,0.23012071]
[1747262412135,0.6624324,103530.0,103520.0,0.42327171]
[1747262413034,0.2924324,103530.0,103520.0,0.42327171]
[1747262413222,0.4724324,103530.0,103520.0,0.42327171]
[1747262417634,0.6424324,103530.0,103520.0,0.19892071]
[1747262418739,0.6424324,103530.0,103520.0,0.39207171]
[1747262418939,0.4424324,103530.0,103520.0,0.39207171]
[1747262420043,0.6024324,103530.0,103520.0,0.39207171]
[1747262422041,0.6024324,103530.0,103520.0,0.19892071]
[1747262424242,0.6024324,103530.0,103520.0,0.23192071]
[1747262425645,1.0145124,103530.0,103520.0,0.23192071]
[1747262427749,1.0145124,103530.0,103520.0,0.31890763]
[1747262428748,1.0145124,103530.0,103520.0,0.23192071]
[1747262432853,1.0145124,103530.0,103520.0,0.42507171]
[1747262433355,1.0145124,103530.0,103520.0,0.45797171]
[1747262434251,1.0145124,103530.0,103520.0,0.26482071]
[1747262435458,1.0145124,103530.0,103520.0,0.45797171]
[1747262436553,1.0141124,103530.0,103520.0,0.45797171]
[1747262436957,1.0141124,103530.0,103520.0,0.26482071]
[1747262440749,1.0141124,103530.0,103520.0,0.35180763]
[1747262441964,1.0141124,103530.0,103520.0,0.26482071]
[1747262442662,1.0141124,103530.0,103520.0,0.23192071]
[1747262443374,1.0141124,103530.0,103520.0,0.31890763]
[1747262443848,1.0141124,103530.0,103520.0,0.23192071]
[1747262453966,1.0141124,103530.0,103520.0,0.51205863]
[1747262454157,1.0141124,103530.0,103520.0,0.54305863]
[1747262454362,1.0146324,103530.0,103520.0,0.54305863]
[1747262454563,1.0146324,103530.0,103520.0,0.34990763]
[1747262455063,1.0146324,103530.0,103520.0,0.54305863]
[1747262455370,1.0146324,103530.0,103520.0,0.34990763]
[1747262460269,1.0143124,103530.0,103520.0,0.54305863]
[1747262460467,0.6024324,103530.0,103520.0,0.54305863]
[1747262460667,1.0142724,103530.0,103520.0,0.54305863]
[1747262474785,1.0142724,103530.0,103520.0,0.45607171]
[1747262474984,1.0142724,103530.0,103520.0,0.54305863]
[1747262483891,1.0242724,103530.0,103520.0,0.54305863]
[1747262486295,1.0242724,103530.0,103520.0,0.34990763]
[1747262490016,1.0242724,103530.0,103520.0,0.26292071]
[1747262500920,1.0242724,103530.0,103520.0,0.34990763]
[1747262502214,1.0242724,103530.0,103520.0,0.26292071]
[1747262511221,1.0242724,103530.0,103520.0,0.54305863]
[1747262511434,0.1951324,103530.0,103520.0,1.08744057]